[Event "*** Titled Tuesday Blitz"]
[Site "Chess.com"]
[Date "2020.05.05"]
[Round "10"]
[White "Durarbayli"]
[Black "AnishGiri"]
[Result "1/2-1/2"]
[WhiteElo "2829"]
[BlackElo "3035"]
[TimeControl "180+1"]
[EndTime "12:01:28 PDT"]
[Termination "Game drawn by agreement"]

1. e4 {[%clk 0:03:00.9]} 1... c5 {[%clk 0:03:00.4]} 2. b3 {[%clk 0:02:59.2]}
2... g6 {[%clk 0:02:57]} 3. Bb2 {[%clk 0:02:58.7]} 3... Nf6 {[%clk 0:02:57.7]}
4. e5 {[%clk 0:02:59]} 4... Nd5 {[%clk 0:02:58.1]} 5. g3 {[%clk 0:02:56.9]} 5...
Bg7 {[%clk 0:02:56.2]} 6. Bg2 {[%clk 0:02:56.9]} 6... Nb4 {[%clk 0:02:54.4]} 7.
Nf3 {[%clk 0:02:53.6]} 7... d6 {[%clk 0:02:50.5]} 8. O-O {[%clk 0:02:35.3]} 8...
N4c6 {[%clk 0:02:47.2]} 9. Qe2 {[%clk 0:02:10.8]} 9... O-O {[%clk 0:02:41]} 10.
Na3 {[%clk 0:02:06.3]} 10... Bg4 {[%clk 0:02:30.7]} 11. Nc4 {[%clk 0:01:56.2]}
11... d5 {[%clk 0:02:30.9]} 12. Ne3 {[%clk 0:01:54.3]} 12... Bxf3 {[%clk
0:02:31.2]} 13. Bxf3 {[%clk 0:01:36.3]} 13... e6 {[%clk 0:02:31.1]} 14. Ng4
{[%clk 0:00:48.1]} 14... Nd4 {[%clk 0:02:14.5]} 15. Bxd4 {[%clk 0:00:46.5]}
15... cxd4 {[%clk 0:02:15.4]} 16. Qb5 {[%clk 0:00:36.4]} 16... Qb6 {[%clk
0:02:05]} 17. a4 {[%clk 0:00:34.4]} 17... Qxb5 {[%clk 0:01:55.8]} 18. axb5
{[%clk 0:00:34.2]} 18... Nd7 {[%clk 0:01:56.6]} 19. Ra4 {[%clk 0:00:30.1]} 19...
Kh8 {[%clk 0:01:30]} 20. h4 {[%clk 0:00:20.1]} 20... h5 {[%clk 0:01:28.8]} 21.
Nh2 {[%clk 0:00:20]} 21... Nxe5 {[%clk 0:01:23.8]} 22. Rfa1 {[%clk 0:00:19.8]}
22... d3 {[%clk 0:01:21.8]} 23. c3 {[%clk 0:00:18.9]} 23... a6 {[%clk 0:01:15]}
24. bxa6 {[%clk 0:00:18.2]} 24... bxa6 {[%clk 0:01:15.9]} 25. Rxa6 {[%clk
0:00:19.1]} 25... Rab8 {[%clk 0:01:14.4]} 26. Bd1 {[%clk 0:00:19.1]} 26... Rfc8
{[%clk 0:01:10.8]} 27. Ra7 {[%clk 0:00:17.3]} 27... Kg8 {[%clk 0:01:10.1]} 28.
Nf1 {[%clk 0:00:13.7]} 28... d4 {[%clk 0:01:06.2]} 29. c4 {[%clk 0:00:11.5]}
29... Nc6 {[%clk 0:01:06.2]} 30. Rd7 {[%clk 0:00:10.7]} 30... Bf8 {[%clk
0:00:57.3]} 31. f4 {[%clk 0:00:09.9]} 31... Bc5 {[%clk 0:00:47.1]} 32. Ra6
{[%clk 0:00:08.7]} 32... Nb4 {[%clk 0:00:42.2]} 33. Ra5 {[%clk 0:00:07.5]} 33...
Nc2 {[%clk 0:00:42.3]} 34. Kf2 {[%clk 0:00:06.7]} 34... Rxb3 {[%clk 0:00:41.1]}
35. Rb5 {[%clk 0:00:06.9]} 35... Rxb5 {[%clk 0:00:36.4]} 36. cxb5 {[%clk
0:00:07.8]} 36... Rb8 {[%clk 0:00:37.2]} 37. Bf3 {[%clk 0:00:07.8]} 37... Rxb5
{[%clk 0:00:36.5]} 38. Be4 {[%clk 0:00:08.1]} 38... Nb4 {[%clk 0:00:35.8]} 39.
Nh2 {[%clk 0:00:06.9]} 39... Ra5 {[%clk 0:00:29.8]} 40. Nf3 {[%clk 0:00:07]}
40... Ra7 {[%clk 0:00:29.5]} 41. Rd8+ {[%clk 0:00:05.7]} 41... Kg7 {[%clk
0:00:30]} 42. Ne5 {[%clk 0:00:06.2]} 42... Be7 {[%clk 0:00:27.6]} 43. Re8 {[%clk
0:00:03.1]} 43... Bf6 {[%clk 0:00:26.3]} 44. Nxd3 {[%clk 0:00:03.6]} 44... Nxd3+
{[%clk 0:00:18]} 45. Bxd3 {[%clk 0:00:04.5]} 45... Be7 {[%clk 0:00:18.8]} 46.
Rc8 {[%clk 0:00:03.4]} 46... Bb4 {[%clk 0:00:17.8]} 47. Ke2 {[%clk 0:00:03.9]}
47... Ra1 {[%clk 0:00:17.8]} 48. Rc4 {[%clk 0:00:03.9]} 48... Ba5 {[%clk
0:00:13.4]} 49. Rxd4 {[%clk 0:00:04.1]} 49... Rg1 {[%clk 0:00:13.9]} 50. Kf2
{[%clk 0:00:04.4]} 50... Rd1 {[%clk 0:00:13.8]} 51. Be2 {[%clk 0:00:03.2]} 51...
Rxd2 {[%clk 0:00:09.4]} 52. Rxd2 {[%clk 0:00:03.1]} 52... Bxd2 {[%clk
0:00:10.3]} 53. Kf3 {[%clk 0:00:04]} 53... Ba5 {[%clk 0:00:10.8]} 54. Bb5 {[%clk
0:00:03.9]} 54... Bd8 {[%clk 0:00:11.1]} 55. Ba4 {[%clk 0:00:04.5]} 55... Bf6
{[%clk 0:00:11.8]} 56. Bb3 {[%clk 0:00:05]} 56... Kf8 {[%clk 0:00:12.5]} 57. Bc4
{[%clk 0:00:05.5]} 57... Ke7 {[%clk 0:00:13.2]} 58. Bb3 {[%clk 0:00:06.1]} 58...
Kd6 {[%clk 0:00:13.9]} 59. Ba4 {[%clk 0:00:06.6]} 59... Bd8 {[%clk 0:00:14.6]}
60. Be8 {[%clk 0:00:06.2]} 60... Ke7 {[%clk 0:00:14.8]} 61. Ba4 {[%clk
0:00:07.1]} 61... Ba5 {[%clk 0:00:15.2]} 62. Bc2 {[%clk 0:00:07.5]} 62... Be1
{[%clk 0:00:15.4]} 63. Bb3 {[%clk 0:00:07.9]} 63... Bc3 {[%clk 0:00:15.2]} 64.
Ba4 {[%clk 0:00:07.9]} 64... Bb4 {[%clk 0:00:15.5]} 65. Bb3 {[%clk 0:00:08.2]}
65... Ba5 {[%clk 0:00:16.1]} 66. Bc2 {[%clk 0:00:08.6]} 66... Be1 {[%clk
0:00:16.4]} 67. Bb3 {[%clk 0:00:09.1]} 67... f6 {[%clk 0:00:16.5]} 68. Bc2
{[%clk 0:00:08.6]} 68... Kf7 {[%clk 0:00:17]} 69. Bb3 {[%clk 0:00:09]} 69... Bb4
{[%clk 0:00:17.4]} 70. Ba2 {[%clk 0:00:09.2]} 70... Bd6 {[%clk 0:00:17.9]} 71.
Bb3 {[%clk 0:00:09.5]} 71... Ba3 {[%clk 0:00:18.6]} 72. Ba2 {[%clk 0:00:09.7]}
72... Bc1 {[%clk 0:00:19.2]} 73. Bb3 {[%clk 0:00:10]} 73... Ke7 {[%clk
0:00:19.8]} 74. Bc2 {[%clk 0:00:10]} 74... f5 {[%clk 0:00:20.2]} 75. Bb3 {[%clk
0:00:10]} 75... Kf6 {[%clk 0:00:20.8]} 76. Bc4 {[%clk 0:00:10.1]} 76... Bb2
{[%clk 0:00:21.2]} 77. Bb3 {[%clk 0:00:10.1]} 77... e5 {[%clk 0:00:21.4]} 78.
fxe5+ {[%clk 0:00:09.3]} 78... Bxe5 {[%clk 0:00:22.3]} 79. Ba4 {[%clk
0:00:10.2]} 79... Bb2 {[%clk 0:00:22.7]} 80. Bb5 {[%clk 0:00:10.2]} 80... Bc1
{[%clk 0:00:23.3]} 81. Be8 {[%clk 0:00:10]} 81... Bh6 {[%clk 0:00:22.2]} 82. Kg2
{[%clk 0:00:10.2]} 82... f4 {[%clk 0:00:21.2]} 83. gxf4 {[%clk 0:00:09.8]} 83...
Bxf4 {[%clk 0:00:21.7]} 84. Kh3 {[%clk 0:00:10.7]} 84... Bd2 {[%clk 0:00:22.2]}
85. Bc6 {[%clk 0:00:10.3]} 85... Be1 {[%clk 0:00:22.7]} 86. Be8 {[%clk
0:00:10.1]} 86... Kf5 {[%clk 0:00:23.2]} 87. Bxg6+ {[%clk 0:00:09.8]} 87... Kxg6
{[%clk 0:00:23.1]} 88. Kg2 {[%clk 0:00:10.7]} 1/2-1/2

[Event "*** Titled Tuesday Blitz"]
[Site "Chess.com"]
[Date "2020.05.05"]
[Round "10"]
[White "GMKrikor"]
[Black "Azatic"]
[Result "1/2-1/2"]
[WhiteElo "2841"]
[BlackElo "2643"]
[TimeControl "180+1"]
[EndTime "12:01:29 PDT"]
[Termination "Game drawn by agreement"]

1. Nf3 {[%clk 0:03:00.9]} 1... c5 {[%clk 0:02:59.9]} 2. c4 {[%clk 0:03:00.7]}
2... Nf6 {[%clk 0:02:59.1]} 3. Nc3 {[%clk 0:02:58.4]} 3... e6 {[%clk 0:02:58.3]}
4. g3 {[%clk 0:02:57.5]} 4... b6 {[%clk 0:02:58.5]} 5. Bg2 {[%clk 0:02:57.5]}
5... Bb7 {[%clk 0:02:59.4]} 6. O-O {[%clk 0:02:58.1]} 6... Be7 {[%clk
0:02:59.5]} 7. Re1 {[%clk 0:02:58.2]} 7... d6 {[%clk 0:02:59.6]} 8. e4 {[%clk
0:02:57.9]} 8... a6 {[%clk 0:03:00.2]} 9. d4 {[%clk 0:02:58]} 9... cxd4 {[%clk
0:03:01.1]} 10. Nxd4 {[%clk 0:02:58.9]} 10... Qc7 {[%clk 0:03:01.7]} 11. Be3
{[%clk 0:02:59.2]} 11... O-O {[%clk 0:03:01.3]} 12. Rc1 {[%clk 0:02:59.8]} 12...
Nbd7 {[%clk 0:03:01.8]} 13. g4 {[%clk 0:03:00.4]} 13... g6 {[%clk 0:02:42.8]}
14. f4 {[%clk 0:02:59.2]} 14... Rac8 {[%clk 0:02:39.9]} 15. g5 {[%clk 0:02:51]}
15... Nh5 {[%clk 0:02:38.7]} 16. f5 {[%clk 0:02:50.8]} 16... exf5 {[%clk
0:02:33.6]} 17. Nxf5 {[%clk 0:01:58]} 17... Ne5 {[%clk 0:02:15.4]} 18. Nd5
{[%clk 0:01:54.9]} 18... Bxd5 {[%clk 0:02:11.4]} 19. cxd5 {[%clk 0:01:55.8]}
19... Qd7 {[%clk 0:02:05.5]} 20. Rxc8 {[%clk 0:01:50.3]} 20... Rxc8 {[%clk
0:02:03.2]} 21. Bh3 {[%clk 0:01:50.7]} 21... Kf8 {[%clk 0:01:19.9]} 22. Kg2
{[%clk 0:01:29.1]} 22... Rc4 {[%clk 0:00:58.2]} 23. b3 {[%clk 0:00:56.5]} 23...
Rc3 {[%clk 0:00:47.6]} 24. Ng3 {[%clk 0:00:42.5]} 24... Qc7 {[%clk 0:00:30.6]}
25. Nxh5 {[%clk 0:00:42.7]} 25... Rc2+ {[%clk 0:00:23.8]} 26. Kh1 {[%clk
0:00:23.3]} 26... gxh5 {[%clk 0:00:23.6]} 27. Qxh5 {[%clk 0:00:24.1]} 27... Qc3
{[%clk 0:00:20.5]} 28. Re2 {[%clk 0:00:12.5]} 28... Qd3 {[%clk 0:00:12.3]} 29.
Rxc2 {[%clk 0:00:12.1]} 29... Qxe4+ {[%clk 0:00:11.9]} 30. Rg2 {[%clk
0:00:10.6]} 30... Qxe3 {[%clk 0:00:10.8]} 31. Qe2 {[%clk 0:00:10.6]} 31... Qd4
{[%clk 0:00:07.3]} 32. Bf5 {[%clk 0:00:08.7]} 32... Qxd5 {[%clk 0:00:06.8]} 33.
Be4 {[%clk 0:00:08.7]} 33... Qd4 {[%clk 0:00:06.9]} 34. Rg1 {[%clk 0:00:06.7]}
34... Kg7 {[%clk 0:00:07.2]} 35. Rd1 {[%clk 0:00:06.3]} 35... Qc5 {[%clk
0:00:07]} 36. Qh5 {[%clk 0:00:06.5]} 36... Ng6 {[%clk 0:00:06.6]} 37. Qf3 {[%clk
0:00:04.5]} 37... Qxg5 {[%clk 0:00:04.4]} 38. Rf1 {[%clk 0:00:03.7]} 38... Qf6
{[%clk 0:00:04.6]} 39. Qxf6+ {[%clk 0:00:03.1]} 39... Bxf6 {[%clk 0:00:04.5]}
40. Bd3 {[%clk 0:00:04]} 40... a5 {[%clk 0:00:04.3]} 41. Rc1 {[%clk 0:00:04.7]}
41... Bd4 {[%clk 0:00:04.5]} 42. Rc7 {[%clk 0:00:04.8]} 42... Bc5 {[%clk
0:00:04.7]} 43. Bc4 {[%clk 0:00:04.9]} 43... Ne5 {[%clk 0:00:05.2]} 44. Bd5
{[%clk 0:00:05.6]} 44... Kg6 {[%clk 0:00:05.2]} 45. Kg2 {[%clk 0:00:06.1]} 45...
f5 {[%clk 0:00:05.6]} 46. Bg8 {[%clk 0:00:05.4]} 46... h5 {[%clk 0:00:05.6]} 47.
h4 {[%clk 0:00:05.9]} 47... Kf6 {[%clk 0:00:05.7]} 48. Bd5 {[%clk 0:00:05.5]}
48... f4 {[%clk 0:00:05.8]} 49. Bf3 {[%clk 0:00:04.9]} 49... Ng4 {[%clk
0:00:04.7]} 50. Rc8 {[%clk 0:00:03.5]} 50... Ne3+ {[%clk 0:00:05]} 51. Kh3
{[%clk 0:00:04.1]} 51... Ke5 {[%clk 0:00:03.2]} 52. Bxh5 {[%clk 0:00:03.7]}
52... d5 {[%clk 0:00:04.1]} 53. Bf3 {[%clk 0:00:04]} 53... d4 {[%clk 0:00:04.4]}
54. Re8+ {[%clk 0:00:04.2]} 54... Kf6 {[%clk 0:00:04.1]} 55. Rd8 {[%clk
0:00:04.5]} 55... Ke7 {[%clk 0:00:04.6]} 56. Rg8 {[%clk 0:00:02.7]} 56... d3
{[%clk 0:00:04.9]} 57. h5 {[%clk 0:00:03]} 57... d2 {[%clk 0:00:05.1]} 58. Rg1
{[%clk 0:00:03.6]} 58... Nf5 {[%clk 0:00:04.8]} 59. Rd1 {[%clk 0:00:03.4]} 59...
Be3 {[%clk 0:00:05.1]} 60. Kg4 {[%clk 0:00:02.7]} 60... Kf6 {[%clk 0:00:05.4]}
61. Be4 {[%clk 0:00:02.2]} 61... Nh6+ {[%clk 0:00:05.5]} 62. Kf3 {[%clk
0:00:02.6]} 62... Kg5 {[%clk 0:00:05.9]} 63. Bc2 {[%clk 0:00:02.8]} 63... Kxh5
{[%clk 0:00:06]} 64. Ke2 {[%clk 0:00:02.2]} 64... Ng4 {[%clk 0:00:05.5]} 65. Be4
{[%clk 0:00:03.1]} 65... Kg5 {[%clk 0:00:05.7]} 66. Rf1 {[%clk 0:00:03.4]} 66...
Nf6 {[%clk 0:00:05.3]} 67. Bc2 {[%clk 0:00:03.6]} 67... Kg4 {[%clk 0:00:05.3]}
68. Bd1 {[%clk 0:00:02.6]} 68... Kf5 {[%clk 0:00:05.2]} 69. Kd3 {[%clk
0:00:02.5]} 69... Ke5 {[%clk 0:00:05.6]} 70. Be2 {[%clk 0:00:02.4]} 70... Ne4
{[%clk 0:00:06]} 71. Kc2 {[%clk 0:00:03.3]} 71... Nf2 {[%clk 0:00:06.3]} 72.
Rxf2 {[%clk 0:00:02.9]} 72... Bxf2 {[%clk 0:00:06.2]} 73. Kxd2 {[%clk
0:00:03.8]} 73... Be3+ {[%clk 0:00:07.1]} 74. Kd3 {[%clk 0:00:04.1]} 74... Kd5
{[%clk 0:00:08]} 75. Bf3+ {[%clk 0:00:04.5]} 75... Kc5 {[%clk 0:00:08.9]} 76. a4
{[%clk 0:00:04.8]} 76... Kb4 {[%clk 0:00:09.1]} 77. Bd5 {[%clk 0:00:05.1]} 77...
Kc5 {[%clk 0:00:08.7]} 78. Be6 {[%clk 0:00:04.4]} 78... b5 {[%clk 0:00:09]} 79.
axb5 {[%clk 0:00:04.5]} 79... Kxb5 {[%clk 0:00:09.9]} 80. Bd7+ {[%clk
0:00:04.7]} 80... Kc5 {[%clk 0:00:10.4]} 81. Ba4 {[%clk 0:00:05.2]} 81... Kb4
{[%clk 0:00:09.6]} 82. Ke2 {[%clk 0:00:06.1]} 82... Ka3 {[%clk 0:00:08.7]} 83.
Kf1 {[%clk 0:00:07]} 83... Kb4 {[%clk 0:00:09.6]} 1/2-1/2

[Event "*** Titled Tuesday Blitz"]
[Site "Chess.com"]
[Date "2020.05.05"]
[Round "10"]
[White "Glidzhian_Gor"]
[Black "EugeneRougon"]
[Result "1/2-1/2"]
[WhiteElo "2505"]
[BlackElo "2728"]
[TimeControl "180+1"]
[EndTime "12:02:04 PDT"]
[Termination "Game drawn by repetition"]

1. e4 {[%clk 0:02:57.6]} 1... d6 {[%clk 0:03:00]} 2. d4 {[%clk 0:02:56.7]} 2...
Nf6 {[%clk 0:03:00]} 3. Nc3 {[%clk 0:02:55.8]} 3... g6 {[%clk 0:03:00.5]} 4. Nf3
{[%clk 0:02:56]} 4... Bg7 {[%clk 0:03:00.7]} 5. Bg5 {[%clk 0:02:55.2]} 5... O-O
{[%clk 0:02:59.8]} 6. Qd2 {[%clk 0:02:55.3]} 6... a6 {[%clk 0:02:59.7]} 7. O-O-O
{[%clk 0:02:55.5]} 7... b5 {[%clk 0:02:59.8]} 8. e5 {[%clk 0:02:54.5]} 8... b4
{[%clk 0:02:56.8]} 9. exf6 {[%clk 0:02:53.5]} 9... bxc3 {[%clk 0:02:56.9]} 10.
Qxc3 {[%clk 0:02:54.4]} 10... exf6 {[%clk 0:02:55.2]} 11. Be3 {[%clk 0:02:53.6]}
11... Bb7 {[%clk 0:02:53.7]} 12. h4 {[%clk 0:02:53.7]} 12... h5 {[%clk 0:02:53]}
13. Be2 {[%clk 0:02:51.6]} 13... Nd7 {[%clk 0:02:53]} 14. Rdg1 {[%clk
0:02:51.7]} 14... Nb6 {[%clk 0:02:48.7]} 15. g4 {[%clk 0:02:51.5]} 15... hxg4
{[%clk 0:02:46.2]} 16. Rxg4 {[%clk 0:02:52.4]} 16... f5 {[%clk 0:02:47.1]} 17.
Rgg1 {[%clk 0:02:50.2]} 17... Nd5 {[%clk 0:02:47]} 18. Qd2 {[%clk 0:02:50.8]}
18... Nxe3 {[%clk 0:02:45.7]} 19. fxe3 {[%clk 0:02:51.7]} 19... Bh6 {[%clk
0:00:55.1]} 20. h5 {[%clk 0:01:21.2]} 20... g5 {[%clk 0:00:51.7]} 21. e4 {[%clk
0:01:06.2]} 21... Bxe4 {[%clk 0:00:48.4]} 22. Nxg5 {[%clk 0:01:06.2]} 22... Bxh1
{[%clk 0:00:48.4]} 23. Nxf7+ {[%clk 0:00:49.7]} 23... Kxf7 {[%clk 0:00:34.7]}
24. Qxh6 {[%clk 0:00:49]} 24... Qf6 {[%clk 0:00:28.3]} 25. Qh7+ {[%clk
0:00:36.5]} 25... Ke6 {[%clk 0:00:23.3]} 26. Rxh1 {[%clk 0:00:34]} 26... Rf7
{[%clk 0:00:19.9]} 27. d5+ {[%clk 0:00:11.7]} 27... Ke7 {[%clk 0:00:14.1]} 28.
Qg6 {[%clk 0:00:10.6]} 28... Qxg6 {[%clk 0:00:14.3]} 29. hxg6 {[%clk 0:00:11.5]}
29... Rg7 {[%clk 0:00:15.2]} 30. Bh5 {[%clk 0:00:12]} 30... Rh8 {[%clk
0:00:14.7]} 31. Re1+ {[%clk 0:00:12.1]} 31... Kf6 {[%clk 0:00:15.2]} 32. Be2
{[%clk 0:00:11]} 32... Re8 {[%clk 0:00:14.8]} 33. Kd2 {[%clk 0:00:10.8]} 33...
Rxg6 {[%clk 0:00:15.2]} 34. Bxa6 {[%clk 0:00:09.3]} 34... Rxe1 {[%clk
0:00:13.6]} 35. Kxe1 {[%clk 0:00:10.2]} 35... Ke5 {[%clk 0:00:14.2]} 36. Bd3
{[%clk 0:00:09.1]} 36... Rg2 {[%clk 0:00:13.4]} 37. Kf1 {[%clk 0:00:09.1]} 37...
Rh2 {[%clk 0:00:13.4]} 38. a4 {[%clk 0:00:09.3]} 38... Rh1+ {[%clk 0:00:12.8]}
39. Ke2 {[%clk 0:00:09.5]} 39... Ra1 {[%clk 0:00:13.7]} 40. b3 {[%clk 0:00:10]}
40... f4 {[%clk 0:00:13.4]} 41. Kf3 {[%clk 0:00:10.6]} 41... Kxd5 {[%clk
0:00:11.7]} 42. Kxf4 {[%clk 0:00:10.9]} 42... Kc5 {[%clk 0:00:12]} 43. Ke4
{[%clk 0:00:11.2]} 43... c6 {[%clk 0:00:12.3]} 44. c3 {[%clk 0:00:11.4]} 44...
d5+ {[%clk 0:00:12]} 45. Ke3 {[%clk 0:00:11.7]} 45... Ra2 {[%clk 0:00:12.3]} 46.
b4+ {[%clk 0:00:12]} 46... Kd6 {[%clk 0:00:12.3]} 47. a5 {[%clk 0:00:12.4]}
47... Ke5 {[%clk 0:00:11.8]} 48. a6 {[%clk 0:00:12.2]} 48... Ra3 {[%clk
0:00:11.1]} 49. Kd2 {[%clk 0:00:12.7]} 49... d4 {[%clk 0:00:09.2]} 50. cxd4+
{[%clk 0:00:09.5]} 50... Kxd4 {[%clk 0:00:10.1]} 51. Be2 {[%clk 0:00:09.5]}
51... Ra2+ {[%clk 0:00:09.9]} 52. Kd1 {[%clk 0:00:10]} 52... Ra1+ {[%clk
0:00:07.6]} 53. Kd2 {[%clk 0:00:10]} 53... Ra2+ {[%clk 0:00:07.9]} 54. Kd1
{[%clk 0:00:10.5]} 54... Ke3 {[%clk 0:00:08.3]} 55. Bc4 {[%clk 0:00:10.7]} 55...
Ra4 {[%clk 0:00:07.1]} 56. Kc2 {[%clk 0:00:10.4]} 56... Rxb4 {[%clk 0:00:05.5]}
57. Kc3 {[%clk 0:00:10.5]} 57... Ra4 {[%clk 0:00:05.1]} 58. Kb3 {[%clk
0:00:11.2]} 58... Ra1 {[%clk 0:00:04.5]} 59. Kb4 {[%clk 0:00:11.8]} 59... Kd4
{[%clk 0:00:04.6]} 60. Be2 {[%clk 0:00:12.3]} 60... Rb1+ {[%clk 0:00:04]} 61.
Ka5 {[%clk 0:00:12.1]} 61... Kc5 {[%clk 0:00:04.5]} 62. Ka4 {[%clk 0:00:12.1]}
62... Ra1+ {[%clk 0:00:04.4]} 63. Kb3 {[%clk 0:00:12.6]} 63... Kb6 {[%clk
0:00:04.4]} 64. Bd3 {[%clk 0:00:12.2]} 64... Rg1 {[%clk 0:00:03.8]} 65. Kb4
{[%clk 0:00:12.2]} 65... Rg4+ {[%clk 0:00:03.7]} 66. Kc3 {[%clk 0:00:12.3]}
66... Rg3 {[%clk 0:00:03.9]} 67. Kd4 {[%clk 0:00:12]} 67... Ka7 {[%clk
0:00:01.4]} 68. Bc4 {[%clk 0:00:11.8]} 68... Kb6 {[%clk 0:00:02.3]} 69. Bd3
{[%clk 0:00:12]} 69... Rh3 {[%clk 0:00:02.8]} 70. Bc4 {[%clk 0:00:12.4]} 70...
Rh4+ {[%clk 0:00:03.7]} 71. Kc3 {[%clk 0:00:12.7]} 71... Rh5 {[%clk 0:00:03.3]}
72. Kb4 {[%clk 0:00:12.9]} 72... Rh4 {[%clk 0:00:03.4]} 73. Kc3 {[%clk
0:00:13.4]} 73... c5 {[%clk 0:00:04.3]} 74. Bd3 {[%clk 0:00:13.7]} 74... Rh3
{[%clk 0:00:04.3]} 75. Kc4 {[%clk 0:00:14.1]} 75... Rh4+ {[%clk 0:00:04.2]} 76.
Kc3 {[%clk 0:00:14.5]} 76... Rb4 {[%clk 0:00:04.7]} 77. Bc4 {[%clk 0:00:14.2]}
77... Ka7 {[%clk 0:00:04.6]} 78. Bd3 {[%clk 0:00:14.3]} 78... Kb6 {[%clk
0:00:05.2]} 79. Bc4 {[%clk 0:00:14.8]} 79... Kc6 {[%clk 0:00:06.1]} 80. Bd3
{[%clk 0:00:15.3]} 80... Kd5 {[%clk 0:00:06]} 81. Bc2 {[%clk 0:00:13.7]} 81...
Rb6 {[%clk 0:00:05.2]} 82. Bd3 {[%clk 0:00:13.3]} 82... Rb4 {[%clk 0:00:03.8]}
83. Bc2 {[%clk 0:00:13.4]} 83... Rb5 {[%clk 0:00:03.7]} 84. Bb3+ {[%clk
0:00:12]} 84... Kd6 {[%clk 0:00:03.2]} 85. Bc4 {[%clk 0:00:11.7]} 85... Ra5
{[%clk 0:00:04.1]} 86. Bd3 {[%clk 0:00:12.2]} 86... Kd5 {[%clk 0:00:04.2]} 87.
Bc4+ {[%clk 0:00:12.4]} 87... Kc6 {[%clk 0:00:04.8]} 88. Bd3 {[%clk 0:00:13]}
88... Kb6 {[%clk 0:00:04.9]} 89. Bc4 {[%clk 0:00:13.5]} 89... Ra3+ {[%clk
0:00:05.2]} 90. Kb2 {[%clk 0:00:13.9]} 90... Re3 {[%clk 0:00:05.2]} 91. Kc2
{[%clk 0:00:14.5]} 91... Ra3 {[%clk 0:00:05.1]} 92. Kb2 {[%clk 0:00:14.7]} 92...
Rg3 {[%clk 0:00:05.5]} 93. Kc2 {[%clk 0:00:15.2]} 93... Kc6 {[%clk 0:00:05.4]}
94. Bd3 {[%clk 0:00:15.7]} 94... Rg4 {[%clk 0:00:05.1]} 95. Kc3 {[%clk
0:00:16.1]} 95... Ra4 {[%clk 0:00:05.8]} 96. Kb3 {[%clk 0:00:16.3]} 96... Ra1
{[%clk 0:00:06.3]} 97. Kb2 {[%clk 0:00:16.7]} 97... Ra5 {[%clk 0:00:07]} 98. Kb3
{[%clk 0:00:17.1]} 98... Kd5 {[%clk 0:00:07.9]} 99. Bc4+ {[%clk 0:00:17.4]}
99... Kd4 {[%clk 0:00:08.2]} 100. Be2 {[%clk 0:00:18]} 100... Ra1 {[%clk
0:00:08.5]} 101. Kb2 {[%clk 0:00:18.5]} 101... Ra4 {[%clk 0:00:08.7]} 102. Kb3
{[%clk 0:00:18.5]} 102... Ra5 {[%clk 0:00:09.3]} 103. Bc4 {[%clk 0:00:17.6]}
103... Ke3 {[%clk 0:00:09.5]} 104. Bf1 {[%clk 0:00:15.4]} 104... Kd4 {[%clk
0:00:09]} 105. Be2 {[%clk 0:00:14.8]} 105... Ra1 {[%clk 0:00:08.6]} 106. Kb2
{[%clk 0:00:15.1]} 106... Ra5 {[%clk 0:00:08.5]} 107. Kb3 {[%clk 0:00:15.4]}
1/2-1/2